fUST/lending_fUST_20240918
["ID","MTS","AMOUNT","RATE_DAILY","PERIOD"]
[338460694,1726659044946,-204.572174,0.00019178,2]
[338460695,1726659044957,-500.0,0.00019178,2]
[338460696,1726659044968,-1740.53,0.00019178,2]
[338460697,1726659044979,-500.0,0.00019178,2]
[338460698,1726659044990,-642.72,0.00019178,2]
[338460699,1726659045000,-500.0,0.00019178,2]
[338460700,1726659045010,-617.14,0.00019178,2]
[338460701,1726659045022,-204.572174,0.00019178,2]
[338460702,1726659045033,-204.572174,0.00019178,2]
[338460703,1726659045042,-500.0,0.00019178,2]
[338460704,1726659045052,-500.0,0.00019178,2]
[338460705,1726659045061,-500.0,0.00019178,2]
[338460706,1726659045071,-500.0,0.00019178,2]
[338460707,1726659045080,-500.0,0.00019178,2]
[338460708,1726659045089,-151.0,0.00019178,2]
[338460709,1726659045098,-825.31,0.00019178,2]
[338460710,1726659045108,-151.0,0.00019178,2]
[338460711,1726659045117,-151.0,0.00019178,2]
[338460712,1726659045127,-151.0,0.00019178,2]
[338460713,1726659045137,-151.0,0.00019178,2]
[338460714,1726659045146,-151.0,0.00019178,2]
[338460715,1726659045156,-500.0,0.00019178,2]
[338460716,1726659045165,-500.0,0.00019178,2]
[338460717,1726659045175,-1209.0,0.00019178,2]
[338460718,1726659045185,-500.0,0.00019178,2]
[338460719,1726659045195,-500.0,0.00019178,2]
[338460720,1726659045204,-500.0,0.00019178,2]
[338460721,1726659045213,-500.0,0.00019178,2]
[338460722,1726659045222,-1250.2,0.00019178,2]
[338460723,1726659045231,-500.0,0.00019178,2]
[338460724,1726659045241,-500.0,0.00019178,2]
[338460725,1726659045250,-500.0,0.00019178,2]
[338460726,1726659045259,-829.67,0.00019178,2]
[338460727,1726659045268,-500.0,0.00019178,2]
[338460728,1726659045278,-500.0,0.00019178,2]
[338460729,1726659045287,-500.0,0.00019178,2]
[338460730,1726659045297,-500.0,0.00019178,2]
[338460731,1726659045307,-500.0,0.00019178,2]
[338460732,1726659045316,-500.0,0.00019178,2]
[338460733,1726659045325,-500.0,0.00019178,2]
[338460734,1726659045334,-500.0,0.00019178,2]
[338460735,1726659045344,-500.0,0.00019178,2]
[338460736,1726659045354,-250.0,0.00019178,2]
[338460737,1726659045363,-500.0,0.00019178,2]
[338460738,1726659045373,-500.0,0.00019178,2]
[338460739,1726659045383,-1364.54,0.00019178,2]
[338460740,1726659045393,-500.0,0.00019178,2]
[338460741,1726659045404,-500.0,0.00019178,2]
[338460742,1726659045414,-500.0,0.00019178,2]
[338460743,1726659045425,-500.0,0.00019178,2]
[338460744,1726659045435,-1067.28,0.00019178,2]
[338460745,1726659045447,-500.0,0.00019178,2]
[338460746,1726659045457,-500.0,0.00019178,2]
[338460747,1726659045468,-646.63566128,0.00019178,2]
[338460748,1726659045478,-500.0,0.00019178,2]
[338460749,1726659045489,-500.0,0.00019178,2]
[338460750,1726659045498,-500.0,0.00019178,2]
[338460751,1726659045508,-363.29011384,0.00019178,2]
[338460752,1726659045519,-791.561975,0.00019178,2]
[338460753,1726659045529,-1390.71,0.00019178,2]
[338460754,1726659045540,-500.0,0.00019178,2]
[338460755,1726659045553,-546.145174,0.00019178,2]
[338460756,1726659045565,-791.561975,0.00019178,2]
[338460757,1726659045576,-791.561975,0.00019178,2]
[338460758,1726659045587,-500.0,0.00019178,2]
[338460759,1726659045597,-500.0,0.00019178,2]
[338460760,1726659045607,-500.0,0.00019178,2]
[338460761,1726659045618,-791.561975,0.00019178,2]
[338460762,1726659045629,-791.561975,0.00019178,2]
[338460763,1726659045640,-691.79,0.00019178,2]
[338460764,1726659045652,-791.561975,0.00019178,2]
[338460765,1726659045664,-500.0,0.00019178,2]
[338460766,1726659045675,-500.0,0.00019178,2]
[338460767,1726659045685,-873.07,0.00019178,2]
[338460768,1726659045696,-500.0,0.00019178,2]
[338460769,1726659045706,-987.01,0.00019178,2]
[338460770,1726659045716,-500.0,0.00019178,2]
[338460771,1726659045726,-500.0,0.00019178,2]
[338460772,1726659045735,-615.96,0.00019178,2]
[338460774,1726659045745,-500.0,0.00019178,2]
[338460775,1726659045757,-500.0,0.00019178,2]
[338460776,1726659045767,-500.0,0.00019178,2]
[338460777,1726659045779,-500.0,0.00019178,2]
[338460778,1726659045791,-500.0,0.00019178,2]
[338460779,1726659045801,-640.22207552,0.00019178,2]
[338460780,1726659045813,-500.0,0.00019178,2]
[338460781,1726659045824,-500.0,0.00019178,2]
[338460782,1726659045835,-219.85106024,0.00019178,2]
[338460783,1726659045846,-641.28,0.00019178,2]
[338460784,1726659045858,-500.0,0.00019178,2]
[338460785,1726659045869,-500.0,0.00019178,2]
[338460786,1726659045880,-500.0,0.00019178,2]
[338460787,1726659045891,-1750.27,0.00019178,2]
[338460788,1726659045902,-500.0,0.00019178,2]
[338460789,1726659045912,-506.47369279,0.00019178,2]
[338460790,1726659045921,-500.0,0.00019178,2]
[338460791,1726659045930,-500.0,0.00019178,2]
[338460792,1726659045939,-500.0,0.00019178,2]
[338460793,1726659045949,-500.0,0.00019178,2]
[338460794,1726659045958,-1754.07,0.00019178,2]
[338460795,1726659045968,-719.08,0.00019178,2]
[338460796,1726659045978,-500.0,0.00019178,2]
[338460797,1726659045987,-774.27,0.00019178,2]
[338460798,1726659045997,-500.0,0.00019178,2]
[338460799,1726659046006,-500.0,0.00019178,2]
[338460800,1726659046015,-504.38277641,0.00019178,2]
[338460802,1726659046025,-500.0,0.00019178,2]
[338460803,1726659046034,-500.0,0.00019178,2]
[338460804,1726659046043,-500.0,0.00019178,2]
[338460805,1726659046053,-453.16904795,0.00019178,2]
[338460806,1726659046061,-1268.85,0.00019178,2]
[338460807,1726659046071,-500.0,0.00019178,2]
[338460808,1726659046080,-500.0,0.00019178,2]
[338460809,1726659046089,-500.0,0.00019178,2]
[338460810,1726659046098,-683.38,0.00019178,2]
[338460811,1726659046107,-500.0,0.00019178,2]
[338460812,1726659046116,-500.0,0.00019178,2]
[338460813,1726659046125,-500.0,0.00019178,2]
[338460814,1726659046134,-1637.11,0.00019178,2]
[338460815,1726659046144,-500.0,0.00019178,2]
[338460816,1726659046153,-500.0,0.00019178,2]
[338460817,1726659046162,-500.0,0.00019178,2]
[338460818,1726659046172,-889.59,0.00019178,2]
[338460819,1726659046181,-607.7,0.00019178,2]
[338460820,1726659046191,-571.04,0.00019178,2]
[338460821,1726659046200,-500.0,0.00019178,2]
[338460822,1726659046210,-500.0,0.00019178,2]
[338460823,1726659046219,-757.3,0.00019178,2]
[338460824,1726659046228,-500.0,0.00019178,2]
[338460825,1726659046237,-1783.01,0.00019178,2]
[338460826,1726659046247,-1439.96,0.00019178,2]
[338460827,1726659046256,-500.0,0.00019178,2]
[338460828,1726659046265,-573.21,0.00019178,2]
[338460829,1726659046274,-500.0,0.00019178,2]
[338460830,1726659046284,-500.0,0.00019178,2]
[338460831,1726659046293,-1174.47,0.00019178,2]
[338460832,1726659046303,-2256.49,0.00019178,2]
[338460833,1726659046312,-1243.17,0.00019178,2]
[338460834,1726659046322,-500.0,0.00019178,2]
[338460835,1726659046332,-693.15,0.00019178,2]
[338460836,1726659046341,-500.0,0.00019178,2]
[338460837,1726659046351,-500.0,0.00019178,2]
[338460838,1726659046360,-2200.36,0.00019178,2]
[338460839,1726659046370,-1046.07,0.00019178,2]
[338460840,1726659046379,-500.0,0.00019178,2]
[338460841,1726659046389,-2135.2,0.00019178,2]
[338460842,1726659046398,-500.0,0.00019178,2]
[338460843,1726659046408,-277.20909129,0.00019178,2]
[338460844,1726659046418,-379.29274194,0.00019178,2]
[338460845,1726659046428,-686.13,0.00019178,2]
[338460846,1726659046438,-500.0,0.00019178,2]
[338460847,1726659046447,-500.0,0.00019178,2]
[338460848,1726659046456,-570.11,0.00019178,2]
[338460849,1726659046465,-679.13,0.00019178,2]
[338460850,1726659046475,-500.0,0.00019178,2]
[338460851,1726659046484,-1059.62,0.00019178,2]
[338460852,1726659046494,-500.0,0.00019178,2]
[338460853,1726659046503,-518.13,0.00019178,2]
[338460854,1726659046513,-1750.02,0.00019178,2]
[338460855,1726659046523,-546.67,0.00019178,2]
[338460856,1726659046532,-500.0,0.00019178,2]
[338460857,1726659046542,-500.0,0.00019178,2]
[338460858,1726659046554,-500.0,0.00019178,2]
[338460859,1726659046564,-621.18,0.00019178,2]
[338460860,1726659046572,-500.0,0.00019178,2]
[338460861,1726659046582,-620.32,0.00019178,2]
[338460862,1726659046591,-981.02,0.00019178,2]
[338460863,1726659046601,-680.33,0.00019178,2]
[338460864,1726659046610,-500.0,0.00019178,2]
[338460865,1726659046619,-2066.42,0.00019178,2]
[338460866,1726659046629,-1163.76,0.00019178,2]
[338460867,1726659046638,-500.0,0.00019178,2]
[338460868,1726659046647,-500.0,0.00019178,2]
[338460869,1726659046656,-1184.15,0.00019178,2]
[338460870,1726659046666,-1553.59,0.00019178,2]
[338460871,1726659046676,-500.0,0.00019178,2]
[338460872,1726659046686,-891.82,0.00019178,2]
[338460873,1726659046695,-643.35,0.00019178,2]
[338460874,1726659046705,-500.0,0.00019178,2]
[338460875,1726659046715,-151.0,0.00019178,2]
[338460876,1726659046725,-172.937654,0.00019178,2]
[338460877,1726659046734,-500.0,0.00019178,2]
[338460878,1726659046745,-500.0,0.00019178,2]
[338460879,1726659046755,-500.0,0.00019178,2]
[338460880,1726659046766,-1166.91,0.00019178,2]
[338460881,1726659046777,-151.0,0.00019178,2]
[338460882,1726659046787,-151.0,0.00019178,2]
[338460883,1726659046797,-151.0,0.00019178,2]
[338460884,1726659046808,-3730.69,0.00019178,2]
[338460885,1726659046820,-500.0,0.00019178,2]
[338460886,1726659046831,-9090.79,0.00019178,2]
[338460887,1726659046841,-668.73,0.00019178,2]
[338460888,1726659046852,-1052.86,0.00019178,2]
[338460889,1726659046862,-730.56,0.00019178,2]
[338460890,1726659046874,-500.0,0.00019178,2]
[338460891,1726659046887,-2290.91,0.00019178,2]
[338460892,1726659046898,-159.298962,0.00019178,2]
[338460893,1726659046909,-159.298962,0.00019178,2]
[338460894,1726659046922,-151.0,0.00019178,2]
[338460895,1726659046933,-535.58,0.00019178,2]
[338460896,1726659046943,-151.0,0.00019178,2]
[338460897,1726659046956,-151.0,0.00019178,2]
[338460898,1726659046966,-530.64,0.00019178,2]
[338460899,1726659046978,-702.730981,0.00019178,2]
[338460900,1726659046988,-702.730981,0.00019178,2]
[338460901,1726659046999,-702.730981,0.00019178,2]
[338460902,1726659047009,-500.0,0.00019178,2]
[338460903,1726659047019,-159.298962,0.00019178,2]
[338460904,1726659047029,-159.298962,0.00019178,2]
[338460905,1726659047038,-2181.79,0.00019178,2]
[338460906,1726659047047,-5000.0,0.00019178,2]
[338460907,1726659047056,-3618.255437,0.00019178,2]
[338460908,1726659047065,-702.730981,0.00019178,2]
[338460909,1726659047076,-702.730981,0.00019178,2]
[338460910,1726659047087,-702.730981,0.00019178,2]
[338460911,1726659047097,-500.0,0.00019178,2]
[338460912,1726659047108,-1533.35,0.00019178,2]
[338460913,1726659047117,-500.0,0.00019178,2]
[338460914,1726659047128,-500.0,0.00019178,2]
[338460915,1726659047139,-3833.94,0.00019178,2]
[338460916,1726659047150,-500.0,0.00019178,2]
[338460917,1726659047160,-500.0,0.00019178,2]
[338460918,1726659047171,-500.0,0.00019178,2]
[338460919,1726659047181,-759.07,0.00019178,2]
[338460920,1726659047191,-151.0,0.00019178,2]
[338460921,1726659047201,-151.0,0.00019178,2]
[338460922,1726659047211,-151.0,0.00019178,2]
[338460923,1726659047220,-410.834355,0.00019178,2]
[338460924,1726659047231,-410.834355,0.00019178,2]
[338460925,1726659047242,-151.0,0.00019178,2]
[338460926,1726659047253,-151.0,0.00019178,2]
[338460927,1726659047264,-151.0,0.00019178,2]
[338460928,1726659047274,-500.0,0.00019178,2]
[338460929,1726659047285,-500.0,0.00019178,2]
[338460930,1726659047295,-500.0,0.00019178,2]
[338460931,1726659047306,-500.0,0.00019178,2]
[338460932,1726659047315,-542.31879306,0.00019178,2]
[338460933,1726659047326,-500.0,0.00019178,2]
[338460934,1726659047335,-410.834355,0.00019178,2]
[338460935,1726659047344,-500.0,0.00019178,2]
[338460936,1726659047354,-500.0,0.00019178,2]
[338460937,1726659047364,-500.0,0.00019178,2]
[338460938,1726659047373,-410.834355,0.00019178,2]
[338460939,1726659047383,-410.834355,0.00019178,2]
[338460940,1726659047393,-410.834355,0.00019178,2]
[338460941,1726659047402,-731.03,0.00019178,2]
[338460942,1726659047412,-706.68,0.00019178,2]
[338460943,1726659047424,-500.0,0.00019178,2]
[338460944,1726659047436,-500.0,0.00019178,2]
[338460945,1726659047447,-856.01,0.00019178,2]
[338460946,1726659047459,-500.0,0.00019178,2]
[338460947,1726659047469,-500.0,0.00019178,2]
[338460948,1726659047480,-1179.45,0.00019178,2]
[338460949,1726659047489,-500.0,0.00019178,2]
[338460950,1726659047498,-1295.19,0.00019178,2]
[338460951,1726659047507,-722.8,0.00019178,2]
[338460952,1726659047518,-500.0,0.00019178,2]
[338460953,1726659047528,-1811.67,0.00019178,2]
[338460954,1726659047539,-777.28,0.00019178,2]
[338460955,1726659047550,-500.0,0.00019178,2]
[338460956,1726659047564,-500.0,0.00019178,2]
[338460957,1726659047576,-688.06,0.00019178,2]
[338460958,1726659047586,-500.0,0.00019178,2]
[338460959,1726659047760,-500.0,0.00019178,2]
[338460960,1726659047774,-500.0,0.00019178,2]
[338460961,1726659047783,-500.0,0.00019178,2]
[338460962,1726659047794,-500.0,0.00019178,2]
[338460963,1726659047806,-1525.6,0.00019178,2]
[338460964,1726659047817,-2301.74,0.00019178,2]
[338460965,1726659047829,-500.0,0.00019178,2]
[338460966,1726659047839,-500.0,0.00019178,2]
[338460967,1726659047851,-500.0,0.00019178,2]
[338460968,1726659047861,-1578.37,0.00019178,2]
[338460969,1726659047872,-500.0,0.00019178,2]
[338460970,1726659047883,-779.57,0.00019178,2]
[338460971,1726659047894,-1255.01,0.00019178,2]
[338460972,1726659047905,-2086.01,0.00019178,2]
[338460973,1726659047915,-500.0,0.00019178,2]
[338460974,1726659047924,-612.77,0.00019178,2]
[338460975,1726659047936,-500.0,0.00019178,2]
[338460976,1726659047947,-500.0,0.00019178,2]
[338460977,1726659047958,-500.0,0.00019178,2]
[338460978,1726659047970,-3248.7,0.00019178,2]
[338460979,1726659047981,-500.0,0.00019178,2]
[338460980,1726659047991,-500.0,0.00019178,2]
[338460981,1726659048001,-830.03,0.00019178,2]
[338460982,1726659048011,-5280.22,0.00019178,2]
[338460983,1726659048021,-500.0,0.00019178,2]
[338460984,1726659048031,-2057.69,0.00019178,2]
[338460985,1726659048041,-151.0,0.00019178,2]
[338460986,1726659048051,-1239.64,0.00019178,2]
[338460987,1726659048061,-151.0,0.00019178,2]
[338460988,1726659048072,-817.3,0.00019178,2]
[338460989,1726659048082,-1137.54,0.00019178,2]
[338460990,1726659048092,-1637.94,0.00019178,2]
[338460991,1726659048102,-1076.97,0.00019178,2]
[338460992,1726659048113,-500.0,0.00019178,2]
[338460993,1726659048123,-1561.01,0.00019178,2]
[338460994,1726659048132,-698.0,0.00019178,2]
[338460995,1726659048143,-575.45,0.00019178,2]
[338460996,1726659048154,-715.56,0.00019178,2]
[338460997,1726659048164,-178.36590775,0.00019178,2]
[338460998,1726659048173,-500.0,0.00019178,2]
[338460999,1726659048183,-1546.58,0.00019178,2]
[338461000,1726659048193,-631.42,0.00019178,2]
[338461001,1726659048202,-500.0,0.00019178,2]
[338461002,1726659048212,-500.0,0.00019178,2]
[338461003,1726659048222,-4484.86,0.00019178,2]
[338461004,1726659048232,-500.0,0.00019178,2]
[338461005,1726659048242,-1000.92,0.00019178,2]
[338461006,1726659048252,-500.0,0.00019178,2]
[338461007,1726659048262,-151.0,0.00019178,2]
[338461008,1726659048272,-500.0,0.00019178,2]
[338461009,1726659048282,-151.0,0.00019178,2]
[338461010,1726659048292,-151.0,0.00019178,2]
[338461011,1726659048302,-500.0,0.00019178,2]
[338461012,1726659048313,-500.0,0.00019178,2]
[338461013,1726659048324,-2903.2,0.00019178,2]
[338461014,1726659048334,-500.0,0.00019178,2]
[338461015,1726659048344,-500.0,0.00019178,2]
[338461016,1726659048354,-500.0,0.00019178,2]
[338461017,1726659048365,-500.0,0.00019178,2]
[338461018,1726659048375,-500.0,0.00019178,2]
[338461019,1726659048384,-500.0,0.00019178,2]
[338461020,1726659048394,-500.0,0.00019178,2]
[338461021,1726659048403,-500.0,0.00019178,2]
[338461022,1726659048413,-500.0,0.00019178,2]
[338461023,1726659048423,-500.0,0.00019178,2]
[338461024,1726659048433,-924.55,0.00019178,2]
[338461025,1726659048442,-500.0,0.00019178,2]
[338461026,1726659048451,-12671.91,0.00019178,2]
[338461027,1726659048461,-500.0,0.00019178,2]
[338461028,1726659048471,-500.0,0.00019178,2]
[338461029,1726659048480,-607.47,0.00019178,2]
[338461030,1726659048489,-398.38322423,0.00019178,2]
[338461031,1726659048500,-500.0,0.00019178,2]
[338461032,1726659048510,-500.0,0.00019178,2]
[338461033,1726659048519,-500.0,0.00019178,2]
[338461034,1726659048529,-910.77,0.00019178,2]
[338461035,1726659048538,-500.0,0.00019178,2]
[338461036,1726659048547,-1489.98,0.00019178,2]
[338461037,1726659048560,-2111.8,0.00019178,2]
[338461038,1726659048569,-500.0,0.00019178,2]
[338461039,1726659048579,-500.0,0.00019178,2]
[338461040,1726659048589,-500.0,0.00019178,2]
[338461041,1726659048601,-500.0,0.00019178,2]
[338461042,1726659048611,-1326.37,0.00019178,2]
[338461043,1726659048621,-500.0,0.00019178,2]
[338461044,1726659048632,-519.35,0.00019178,2]
[338461045,1726659048642,-442.27621167,0.00019178,2]
[338461046,1726659048652,-530.09,0.00019178,2]
[338461047,1726659048662,-1016.91,0.00019178,2]
[338461048,1726659048671,-500.0,0.00019178,2]
[338461049,1726659048681,-500.0,0.00019178,2]
[338461050,1726659048690,-500.0,0.00019178,2]
[338461051,1726659048699,-1330.72,0.00019178,2]
[338461052,1726659048710,-500.0,0.00019178,2]
[338461053,1726659048720,-1959.35,0.00019178,2]
[338461054,1726659048731,-1339.55,0.00019178,2]
[338461055,1726659048740,-500.0,0.00019178,2]
[338461056,1726659048750,-1564.74,0.00019178,2]
[338461057,1726659048760,-151.0,0.00019178,2]
[338461058,1726659048769,-366.94056256,0.00019178,2]
[338461059,1726659048779,-500.0,0.00019178,2]
[338461060,1726659048790,-2663.91,0.00019178,2]
[338461061,1726659048799,-221.740558,0.00019178,2]
[338461062,1726659048810,-221.740558,0.00019178,2]
[338461063,1726659048821,-500.0,0.00019178,2]
[338461064,1726659048832,-221.740558,0.00019178,2]
[338461065,1726659048842,-1082.35,0.00019178,2]
[338461066,1726659048854,-500.0,0.00019178,2]
[338461067,1726659048863,-151.0,0.00019178,2]
[338461068,1726659048874,-151.0,0.00019178,2]
[338461069,1726659048884,-151.0,0.00019178,2]
[338461070,1726659048895,-500.0,0.00019178,2]
[338461071,1726659048905,-151.0,0.00019178,2]
[338461072,1726659048915,-151.0,0.00019178,2]
[338461073,1726659048924,-589.77,0.00019178,2]
[338461074,1726659048934,-521.55,0.00019178,2]
[338461075,1726659048944,-201.554462,0.00019178,2]
[338461076,1726659048953,-221.740558,0.00019178,2]
[338461077,1726659048963,-512.14,0.00019178,2]
[338461078,1726659048973,-201.554462,0.00019178,2]
[338461079,1726659048983,-221.740558,0.00019178,2]
[338461080,1726659048993,-201.554462,0.00019178,2]
[338461081,1726659049003,-221.740558,0.00019178,2]
[338461082,1726659049012,-151.0,0.00019178,2]
[338461083,1726659049022,-819.9,0.00019178,2]
[338461084,1726659049032,-500.0,0.00019178,2]
[338461085,1726659049041,-2346.94,0.00019178,2]
[338461086,1726659049051,-151.0,0.00019178,2]
[338461087,1726659049062,-151.0,0.00019178,2]
[338461088,1726659049071,-500.0,0.00019178,2]
[338461089,1726659049082,-500.0,0.00019178,2]
[338461090,1726659049091,-1174.75,0.00019178,2]
[338461091,1726659049103,-1224.24,0.00019178,2]
[338461092,1726659049113,-201.554462,0.00019178,2]
[338461093,1726659049123,-201.554462,0.00019178,2]
[338461094,1726659049132,-201.554462,0.00019178,2]
[338461095,1726659049144,-500.0,0.00019178,2]
[338461096,1726659049155,-509.38,0.00019178,2]
[338461097,1726659049165,-500.0,0.00019178,2]
[338461098,1726659049175,-500.0,0.00019178,2]
[338461099,1726659049185,-500.0,0.00019178,2]
[338461100,1726659049195,-2548.5,0.00019178,2]
[338461101,1726659049205,-734.86,0.00019178,2]
[338461102,1726659049214,-2023.44,0.00019178,2]
[338461103,1726659049225,-500.0,0.00019178,2]
[338461104,1726659049235,-5645.12,0.00019178,2]
[338461105,1726659049245,-500.0,0.00019178,2]
[338461106,1726659049255,-500.50053108,0.00019178,2]
[338461107,1726659049265,-962.98,0.00019178,2]
[338461108,1726659049277,-569.48,0.00019178,2]
[338461109,1726659049286,-524.05,0.00019178,2]
[338461110,1726659049296,-303.39703546,0.00019178,2]
[338461111,1726659049305,-839.44,0.00019178,2]
[338461112,1726659049316,-1195.64,0.00019178,2]
[338461113,1726659049327,-924.98,0.00019178,2]
[338461114,1726659049336,-500.0,0.00019178,2]
[338461115,1726659049346,-500.0,0.00019178,2]
[338461116,1726659049355,-151.0,0.00019178,2]
[338461117,1726659049366,-152.115204,0.00019178,2]
[338461118,1726659049376,-500.0,0.00019178,2]
[338461119,1726659049386,-229.30462457,0.00019178,2]
[338461120,1726659049396,-2646.37,0.00019178,2]
[338461121,1726659049406,-1420.41,0.00019178,2]
[338461122,1726659049416,-500.0,0.00019178,2]
[338461123,1726659049426,-2144.44,0.00019178,2]
[338461124,1726659049436,-1360.42,0.00019178,2]
[338461125,1726659049446,-1152.6,0.00019178,2]
[338461126,1726659049455,-500.0,0.00019178,2]
[338461127,1726659049464,-500.0,0.00019178,2]
[338461128,1726659049473,-500.0,0.00019178,2]
[338461129,1726659049483,-1567.43,0.00019178,2]
[338461130,1726659049492,-2528.93,0.00019178,2]
[338461131,1726659049503,-1554.54,0.00019178,2]
[338461132,1726659049512,-500.0,0.00019178,2]
[338461133,1726659049521,-824.52,0.00019178,2]
[338461134,1726659049531,-2525.92,0.00019178,2]
[338461135,1726659049540,-996.56,0.00019178,2]
[338461136,1726659049550,-1052.0,0.00019178,2]
[338461137,1726659049561,-840.7,0.00019178,2]
[338461138,1726659049571,-1344.5,0.00019178,2]
[338461139,1726659049580,-500.0,0.00019178,2]
[338461141,1726659049591,-655.28,0.00019178,2]
[338461142,1726659049601,-1448.1,0.00019178,2]
[338461143,1726659049610,-500.0,0.00019178,2]
[338461144,1726659049620,-580.53,0.00019178,2]
[338461145,1726659049630,-1228.71,0.00019178,2]
[338461146,1726659049640,-500.0,0.00019178,2]
[338461147,1726659049649,-1216.74,0.00019178,2]
[338461148,1726659049658,-500.0,0.00019178,2]
[338461149,1726659049668,-500.0,0.00019178,2]
[338461150,1726659049679,-1601.5,0.00019178,2]
[338461151,1726659049689,-500.0,0.00019178,2]
[338461152,1726659049702,-1122.07,0.00019178,2]
[338461153,1726659049713,-500.0,0.00019178,2]
[338461154,1726659049724,-500.0,0.00019178,2]
[338461155,1726659049734,-500.0,0.00019178,2]
[338461156,1726659049745,-756.43,0.00019178,2]
[338461157,1726659049756,-500.0,0.00019178,2]
[338461158,1726659049768,-500.0,0.00019178,2]
[338461159,1726659049781,-390.46,0.00019178,2]
[338461160,1726659049793,-1230.88,0.00019178,2]
[338461161,1726659049804,-500.0,0.00019178,2]
[338461162,1726659049814,-2502.0,0.00019178,2]
[338461163,1726659049823,-1972.61,0.00019178,2]
[338461164,1726659049832,-500.0,0.00019178,2]
[338461165,1726659049842,-151.0,0.00019178,2]
[338461166,1726659049852,-500.0,0.00019178,2]
[338461167,1726659049862,-151.0,0.00019178,2]
[338461168,1726659049872,-151.0,0.00019178,2]
[338461169,1726659049883,-511.76,0.00019178,2]
[338461170,1726659049893,-500.0,0.00019178,2]
[338461171,1726659049903,-1290.78,0.00019178,2]
[338461172,1726659049914,-956.54,0.00019178,2]
[338461173,1726659049926,-1184.37,0.00019178,2]
[338461174,1726659049936,-500.0,0.00019178,2]
[338461175,1726659049946,-1125.54,0.00019178,2]
[338461176,1726659049956,-500.0,0.00019178,2]
[338461177,1726659049966,-742.58,0.00019178,2]
[338461178,1726659049976,-1046.08,0.00019178,2]
[338461179,1726659049987,-500.0,0.00019178,2]
[338461180,1726659049998,-595.67,0.00019178,2]
[338461181,1726659050008,-500.0,0.00019178,2]
[338461182,1726659050019,-500.0,0.00019178,2]
[338461183,1726659050031,-500.0,0.00019178,2]
[338461184,1726659050041,-500.0,0.00019178,2]
[338461185,1726659050051,-500.0,0.00019178,2]
[338461186,1726659050062,-500.0,0.00019178,2]
[338461187,1726659050073,-500.0,0.00019178,2]
[338461188,1726659050084,-500.0,0.00019178,2]
[338461189,1726659050094,-590.99,0.00019178,2]
[338461190,1726659050104,-500.0,0.00019178,2]
[338461191,1726659050115,-2350.3,0.00019178,2]
[338461192,1726659050125,-838.86,0.00019178,2]
[338461193,1726659050137,-500.0,0.00019178,2]
[338461194,1726659050149,-1347.2,0.00019178,2]
[338461195,1726659050158,-1227.51,0.00019178,2]
[338461196,1726659050168,-1547.28,0.00019178,2]